bitfinex-derivatives/quotes_SOLF0:USTF0_20241012
["timestamp","ask_amount","ask_price","bid_price","bid_amount"]
[1728695889097,3.4261,145.96,145.91,8.4]
[1728695890114,3.4261,145.96,145.92,3.4268]
[1728695890499,3.4263,145.95,145.92,3.4268]
[1728695892705,3.4267,145.94,145.91,3.4272]
[1728695892906,3.4267,145.94,145.9,8.4]
[1728695893207,8.4,145.94,145.87,9.7116]
[1728695893503,8.4,145.94,145.87,14.6716]
[1728695894407,3.427,145.92,145.89,3.4276]
[1728695895602,3.427,145.92,145.89,11.8276]
[1728695896306,3.4268,145.93,145.89,11.8276]
[1728695897027,3.4268,145.93,145.87,6.2716]
[1728695897028,3.4265,145.95,145.92,8.4]
[1728695897706,3.4265,145.95,145.92,11.8269]
[1728695899407,3.4265,145.95,145.93,8.4]
[1728695899606,3.4265,145.95,145.9,4.96]
[1728695899607,0.12502,145.97,145.94,8.4]
[1728695900009,3.4261,145.96,145.94,8.4]
[1728695900200,0.12502,145.97,145.94,8.4]
[1728695900810,3.55092,145.97,145.94,11.8264]
[1728695901012,0.12502,145.97,145.94,11.8264]
[1728695901205,0.12502,145.97,145.92,8.4]
[1728695901613,0.12502,145.97,145.91,1.3304]
[1728695901614,0.12502,145.97,145.94,8.4]
[1728695902206,3.55092,145.97,145.94,8.4]
[1728695902906,0.12502,145.97,145.95,11.8261]
[1728695904613,0.12502,145.97,145.96,3.4261]
[1728695905905,5.08502,146.03,145.95,8.4]
[1728695906114,5.08502,146.03,145.97,11.8257]
[1728695906417,8.4,146.01,145.97,4.96]
[1728695906915,3.4255,145.99,145.97,4.96]
[1728695911722,3.4258,145.97,145.94,3.4264]
[1728695912022,8.4,145.99,145.94,13.36]
[1728695913213,3.4257,145.98,145.94,13.36]
[1728695913516,8.4,145.99,145.94,13.36]
[1728695913919,3.426,145.97,145.94,13.36]
[1728695916620,8.4,145.99,145.94,13.36]
[1728695916809,3.4261,145.96,145.94,13.36]
[1728695919817,8.4,145.99,145.94,13.36]
[1728695920019,3.426,145.97,145.94,13.36]
[1728695921222,3.426,145.97,145.94,16.7865]
[1728695924024,3.426,145.97,145.94,13.36]
[1728695924326,3.4256,145.98,145.95,8.4]
[1728695924532,3.4256,145.98,145.95,11.8263]
[1728695927727,3.4254,145.99,145.96,3.426]
[1728695928827,3.4254,145.99,145.95,11.8262]
[1728695929630,4.96,146.0,145.95,11.8262]
[1728695929930,3.4257,145.98,145.95,11.8262]
[1728695936123,8.4,146.02,145.95,8.4]
[1728695936329,8.4,146.02,145.96,3.4261]
[1728695936330,3.4254,145.99,145.96,3.4261]
[1728695936657,4.96,146.01,145.94,4.96]
[1728695936833,3.4257,145.98,145.95,3.4263]
[1728695938735,13.36,146.01,145.96,11.8259]
[1728695939639,3.4254,145.99,145.96,11.8259]
[1728695940630,3.4248,146.02,145.97,11.8257]
[1728695940826,8.52502,146.03,145.97,11.8257]
[1728695940827,13.48502,146.03,145.97,8.4]
[1728695941235,3.425,146.01,145.98,3.4256]
[1728695942934,13.48502,146.03,145.97,8.4]
[1728695943133,13.48502,146.03,145.97,11.8257]
[1728695943134,3.4251,146.0,145.97,11.8257]
[1728695943839,8.4,146.01,145.95,1.3156]
[1728695944339,8.4,146.01,145.95,9.7156]
[1728695944533,3.4255,145.99,145.95,13.1417]
[1728695947929,8.4,146.01,145.95,8.4]
[1728695948138,3.4261,145.96,145.94,8.4]
[1728695953745,3.4259,145.97,145.94,8.4]
[1728695955548,13.36,146.0,145.94,8.4]
[1728695956447,3.4255,145.99,145.94,8.4]
[1728695956747,13.36,146.0,145.94,8.4]
[1728695957540,3.426,145.97,145.94,8.4]
[1728695958657,3.4254,145.99,145.96,3.426]
[1728695958952,3.4254,145.99,145.97,8.4]
[1728695960848,4.96,146.0,145.95,9.7329]
[1728695961055,3.4258,145.98,145.95,9.7329]
[1728695962057,3.4258,145.98,145.95,1.3329]
[1728695962752,3.4258,145.97,145.95,1.3329]
[1728695964556,3.4257,145.98,145.95,13.1592]
[1728695969453,3.4259,145.97,145.95,1.3329]
[1728695973358,3.4259,145.97,145.95,9.7329]
[1728695973763,4.96,146.0,145.95,9.7329]
[1728695973955,4.96,146.0,145.96,8.4]
[1728695975463,3.4254,145.99,145.96,11.8261]
[1728695976563,3.4256,145.98,145.96,8.4]
[1728695976761,4.96,146.0,145.95,1.3329]
[1728695976955,4.96,146.0,145.93,8.4]
[1728695977361,3.426,145.97,145.93,11.8267]
[1728695980067,8.4,145.99,145.92,1.4124]
[1728695980268,3.4262,145.96,145.94,8.4]
[1728695985767,3.4259,145.97,145.94,11.8265]
[1728695992474,4.96,146.0,145.94,8.4]
[1728695992677,3.4257,145.98,145.95,3.4262]
[1728695994574,8.4,145.99,145.92,13.36]
[1728695995171,3.4261,145.97,145.93,3.4267]
[1728695996175,3.4262,145.96,145.93,3.4267]
[1728695997572,3.4262,145.96,145.91,1.44602]
[1728695997573,8.4,145.96,145.91,0.12502]
[1728695997774,8.4,145.96,145.91,3.55222]
[1728695997975,8.4,145.95,145.91,3.55222]
[1728695998881,3.427,145.92,145.91,0.12502]
[1728696006781,3.4269,145.93,145.91,0.12502]
[1728696007177,4.96,145.96,145.91,11.95202]
[1728696007383,3.4264,145.95,145.91,11.95202]
[1728696007982,3.4268,145.93,145.91,0.12502]
[1728696008779,3.4266,145.94,145.91,3.55222]
[1728696009486,8.4,145.97,145.92,8.4]
[1728696009686,4.96,145.98,145.92,8.4]
[1728696009884,13.36,145.98,145.92,8.4]
[1728696010083,3.4262,145.96,145.91,0.12502]
[1728696010387,3.4262,145.96,145.91,8.52502]
[1728696010587,3.4262,145.96,145.92,3.4268]
[1728696013683,11.8262,145.96,145.92,3.4268]
[1728696013885,8.4,145.96,145.92,3.4268]
[1728696014086,3.4263,145.95,145.92,3.4268]
[1728696018194,8.4,145.98,145.92,8.4]
[1728696018394,3.426,145.97,145.94,3.4265]
[1728696019192,3.4257,145.98,145.95,11.8263]
[1728696020296,78.18250348,146.04,145.95,8.4]
[1728696020495,3.4253,146.0,145.97,8.4]
[1728696020703,4.96,146.02,145.97,8.4]
[1728696021098,3.4253,146.0,145.97,8.4]
[1728696021901,3.4253,146.0,145.96,11.8259]
[1728696023897,3.4253,146.0,145.96,8.4]
[1728696024104,3.4253,146.0,145.97,11.8258]
[1728696027098,3.4253,146.0,145.97,8.4]
[1728696027805,3.4254,145.99,145.97,8.4]
[1728696028197,3.4254,145.99,145.96,11.826]
[1728696032410,3.4254,145.99,145.97,8.4]
[1728696036506,13.48502,146.03,145.93,2.6784]
[1728696036812,8.4,145.98,145.92,1.4019]
[1728696037207,3.4262,145.96,145.92,4.8288]
[1728696037610,3.4263,145.95,145.92,4.8288]
[1728696038512,3.4263,145.95,145.92,13.2288]
[1728696041616,3.4259,145.97,145.94,11.8265]
[1728696041917,3.4259,145.97,145.95,8.4]
[1728696043815,3.4262,145.96,145.94,8.4]
[1728696044720,3.4257,145.98,145.94,8.4]
[1728696044922,8.4,145.98,145.92,4.8288]
[1728696045214,8.4,145.98,145.92,13.2288]
[1728696046417,3.4264,145.95,145.92,13.2288]
[1728696046811,3.4264,145.95,145.93,8.4]
[1728696047123,4.96,146.02,145.94,8.4]
[1728696047325,4.96,146.02,145.96,8.4]
[1728696047719,3.4251,146.01,145.96,8.4]
[1728696047916,4.96,146.02,145.96,8.4]
[1728696048718,3.4254,145.99,145.96,11.8259]
[1728696049327,3.4252,146.0,145.98,8.4]
[1728696050341,3.4248,146.02,145.99,8.4]
[1728696050522,0.12502,146.03,146.01,8.4]
[1728696051422,3.54942,146.03,146.01,8.4]
[1728696053230,3.4247,146.02,145.99,11.8253]
[1728696057329,3.4247,146.02,146.0,8.4]
[1728696057931,3.4247,146.02,145.99,11.8253]
[1728696060340,3.54952,146.03,146.0,11.8249]
[1728696061337,0.12502,146.03,146.0,11.8249]
[1728696062234,0.12502,146.03,146.02,8.4]
[1728696064238,0.12502,146.03,146.0,2.8241]
[1728696064836,3.54962,146.03,145.99,16.7652]
[1728696065233,0.12502,146.03,145.99,3.4252]
[1728696065437,0.12502,146.03,145.99,11.8252]
[1728696065934,0.12502,146.03,145.98,4.94]
[1728696066136,3.4252,146.0,145.97,18.0787]
[1728696066538,8.52502,146.03,145.97,18.0787]
[1728696066539,3.425,146.01,145.97,18.0787]
[1728696068634,3.425,146.01,145.99,8.4]
[1728696068940,3.4247,146.02,145.99,8.4]
[1728696070438,0.12502,146.03,145.99,8.4]
[1728696070642,3.4249,146.01,145.99,8.4]
[1728696072345,3.4247,146.02,145.99,11.8253]
[1728696072647,3.4247,146.02,145.99,8.4]
[1728696073241,3.54952,146.03,146.0,8.4]
[1728696074245,3.54952,146.03,146.0,11.825]
[1728696075644,3.54952,146.03,146.0,8.4]
[1728696075645,0.12502,146.03,146.0,8.4]
[1728696075851,3.4247,146.02,146.0,8.4]
[1728696078553,3.4247,146.02,145.99,11.8253]
[1728696080642,3.4255,145.99,145.97,1.3129]
[1728696084257,3.4252,146.0,145.97,1.3129]
[1728696088659,3.4252,146.0,145.97,4.7387]
[1728696091063,3.425,146.01,145.98,11.8254]
[1728696091265,0.12502,146.03,145.98,11.8254]
[1728696091562,3.4248,146.02,145.98,11.8254]
[1728696093169,0.12502,146.03,146.01,11.8249]
[1728696093469,0.12502,146.03,146.01,8.4]
[1728696094462,0.12502,146.03,146.02,3.4247]
[1728696094769,0.12502,146.03,146.01,8.4]
[1728696095179,0.12502,146.03,146.01,11.8248]
[1728696096772,0.12502,146.03,146.02,11.8247]
[1728696098173,0.12502,146.03,146.02,3.4247]
[1728696100267,0.12502,146.03,146.01,8.3648]
[1728696100473,0.12502,146.03,146.01,4.94]
[1728696103074,0.12502,146.03,146.01,16.7648]
[1728696103973,0.12502,146.03,146.02,3.4247]
[1728696105573,0.12502,146.03,146.01,16.7647]
[1728696105770,0.12502,146.03,146.01,8.3647]
[1728696108582,3.54952,146.03,145.98,7.599]
[1728696108776,3.54952,146.03,145.98,15.999]
[1728696109171,3.54952,146.03,145.99,3.4252]
[1728696110777,0.12502,146.03,145.99,3.4252]
[1728696110974,0.12502,146.03,145.98,8.3655]
[1728696110975,3.4249,146.01,145.98,8.3655]
[1728696111382,0.12502,146.03,145.98,13.34]
[1728696111676,3.54952,146.03,145.99,3.4252]
[1728696113683,3.4248,146.02,145.98,16.7655]
[1728696118887,3.4248,146.02,145.99,3.4253]
[1728696121885,0.12502,146.03,145.99,3.4253]
[1728696122090,3.54952,146.03,146.0,3.4251]
[1728696122390,3.54952,146.03,146.0,11.8251]
[1728696123391,0.12502,146.03,146.0,11.8251]
[1728696124991,0.12502,146.03,146.0,3.4251]
[1728696129206,3.54952,146.03,146.0,3.4251]
[1728696129695,0.12502,146.03,146.0,3.4251]
[1728696130095,0.12502,146.03,146.01,3.4249]
[1728696136901,0.12502,146.03,146.0,8.4]
[1728696137102,0.12502,146.03,146.02,3.4247]
[1728696140099,0.12502,146.03,146.02,4.7597]
[1728696146715,0.12502,146.03,146.02,1.335]
[1728696146909,0.12502,146.03,146.0,4.94]
[1728696147713,0.12502,146.03,146.01,3.4249]
[1728696150315,126.12502,146.03,146.0,13.34]
[1728696150508,126.12502,146.03,146.0,16.765]
[1728696151710,134.52502,146.03,145.98,1.3471]
[1728696151918,3.4249,146.01,145.98,9.7126]
[1728696152713,3.4248,146.02,145.98,9.7126]
[1728696153219,3.4251,146.01,145.97,9.765]
[1728696153913,8.4,146.01,145.97,1.3992]
[1728696154514,126.12502,146.03,145.97,9.7992]
[1728696154817,134.52502,146.03,145.97,9.7992]
[1728696155119,3.425,146.01,145.97,13.2249]
[1728696155520,134.52502,146.03,145.97,9.7992]
[1728696155712,134.52502,146.03,145.97,8.4]
[1728696156223,8.4,146.01,145.96,100.82591337]
[1728696157618,3.4254,145.99,145.96,100.82591337]
[1728696158020,3.4254,145.99,145.96,97.39991337]
[1728696160223,3.4251,146.01,145.97,8.4]
[1728696161127,3.4251,146.01,145.97,11.8258]
[1728696163525,8.4,146.02,145.97,3.4258]
[1728696163823,3.4251,146.0,145.97,3.4258]
[1728696164928,3.4251,146.0,145.96,100.85991337]
[1728696165129,3.4251,146.0,145.96,104.28591337]
[1728696166324,134.52502,146.03,145.97,3.4258]
[1728696166526,134.52502,146.03,145.96,100.85991337]
[1728696166927,3.4249,146.01,145.96,8.4]
[1728696168431,3.4249,146.01,145.97,3.4257]
[1728696170933,8.4,146.01,145.97,3.4257]
[1728696171127,126.12502,146.03,145.94,1.4269]
[1728696171128,8.4,145.98,145.94,1.4269]
[1728696171549,8.4,146.0,145.94,9.8269]
[1728696172029,11.78813162,146.0,145.94,9.8269]
[1728696172435,3.4254,145.99,145.95,3.4262]
[1728696173135,8.365,146.01,145.97,3.4258]
[1728696175436,3.4251,146.0,145.97,3.4258]
[1728696177033,3.4251,146.0,145.95,13.34]
[1728696177234,3.4251,146.0,145.96,3.4259]
[1728696178741,3.4254,145.99,145.96,3.4259]
[1728696180143,3.4252,146.0,145.96,3.4259]
[1728696181144,126.12502,146.03,145.94,6.3669]
[1728696181145,126.12502,146.03,145.99,3.4253]
[1728696181443,126.12502,146.03,145.98,8.4]
[1728696182540,129.54942,146.03,146.0,3.425]
[1728696184744,129.54942,146.03,145.99,8.4]
[1728696184745,126.12502,146.03,145.99,8.4]
[1728696185249,126.12502,146.03,146.02,3.4247]
[1728696185945,126.12502,146.03,146.02,11.8247]
[1728696187344,126.12502,146.03,146.02,3.4247]
[1728696198052,126.12502,146.03,146.0,1.3516]
[1728696198356,126.12502,146.03,146.0,4.94]
[1728696198661,126.12502,146.03,146.0,3.4251]
[1728696199556,126.12502,146.03,145.99,14.7171]
[1728696199757,129.54942,146.03,145.99,18.1423]
[1728696203261,126.12502,146.03,145.99,14.7171]
[1728696203466,126.12502,146.03,146.0,3.4251]
[1728696203965,126.12502,146.03,146.01,3.4249]
[1728696204162,126.12502,146.03,146.0,8.4]
[1728696204465,126.12502,146.03,146.01,3.4247]
[1728696206063,126.12502,146.03,146.02,3.4247]
[1728696206465,126.12502,146.03,146.02,16.7647]
[1728696211363,126.12502,146.03,146.02,8.3647]
[1728696211961,126.12502,146.03,146.02,16.7647]
[1728696212767,126.12502,146.03,146.02,8.3647]
[1728696218163,126.12502,146.03,146.02,4.94]
[1728696220767,126.12502,146.03,146.01,3.4249]
[1728696221875,126.12502,146.03,146.02,3.4247]
[1728696227273,126.12502,146.03,146.01,8.3648]
[1728696233686,126.12502,146.03,146.01,4.94]
[1728696235993,126.12502,146.03,146.01,8.3649]
[1728696236285,126.12502,146.03,146.01,4.94]
[1728696240388,126.12502,146.03,146.01,8.3649]
[1728696242182,126.12502,146.03,146.01,16.7649]
[1728696244795,126.12502,146.03,146.01,8.3649]
[1728696246388,126.12502,146.03,146.02,3.4247]
[1728696252300,126.12502,146.03,146.01,8.3648]
[1728696254206,126.12502,146.03,146.02,3.4247]
[1728696256400,126.12502,146.03,146.01,8.3648]
[1728696259806,126.12502,146.03,146.02,3.4247]
[1728696260308,126.12502,146.03,146.01,4.94]
[1728696260510,126.12502,146.03,146.01,8.3647]
[1728696261015,126.12502,146.03,146.02,11.8247]
[1728696269709,126.12502,146.03,146.02,3.4247]
[1728696270305,126.12502,146.03,145.99,3.4252]
[1728696270515,126.12502,146.03,146.0,4.92]
[1728696272613,126.12502,146.03,146.0,8.3451]
[1728696272815,126.12502,146.03,146.0,16.7451]
[1728696276916,126.12502,146.03,146.01,11.8248]
[1728696280526,126.12502,146.03,146.01,3.4248]
[1728696282526,126.12502,146.03,146.01,4.92]
[1728696284226,126.12502,146.03,146.01,8.3448]
[1728696294435,126.12502,146.03,146.01,4.92]
[1728696309245,126.12502,146.03,146.0,11.8251]
[1728696309448,126.12502,146.03,146.0,16.7451]
[1728696309650,8.4,146.01,145.93,30.3658449]
[1728696309948,8.4,146.01,145.95,8.4]
[1728696310549,3.4251,146.0,145.96,3.4259]
[1728696311751,3.425,146.01,145.96,8.4]
[1728696311952,127.46382,146.03,145.96,8.4]
[1728696311953,127.46382,146.03,145.99,8.4]
[1728696312354,127.46382,146.03,145.99,11.8252]
[1728696315155,130.88822,146.03,145.99,11.8252]
[1728696317853,139.28822,146.03,145.99,11.8252]
[1728696319862,135.86382,146.03,145.97,13.32]
[1728696320064,3.4248,146.02,145.98,3.4255]
[1728696320459,3.4249,146.01,145.98,3.4255]
[1728696322860,3.4247,146.02,145.98,3.4255]
[1728696325764,135.86382,146.03,145.94,89.70813794]
[1728696325969,3.4249,146.01,145.96,3.4258]
[1728696326369,3.4249,146.01,145.97,3.4258]
[1728696336666,3.4251,146.0,145.97,4.92]
[1728696337479,3.4251,146.0,145.96,11.826]
[1728696337680,3.4251,146.0,145.96,16.746]
[1728696342781,127.46382,146.03,145.96,13.32]
[1728696342986,3.4247,146.02,145.98,3.4256]
[1728696360502,135.86382,146.03,145.98,3.4256]
[1728696360701,3.4249,146.01,145.98,3.4256]
[1728696361198,3.4249,146.01,145.97,4.92]
[1728696361399,3.4249,146.01,145.97,8.3457]
[1728696363599,126.12502,146.03,145.97,13.32]
[1728696363797,126.12502,146.03,146.0,8.4]
[1728696364003,126.12502,146.03,146.0,13.32]
[1728696365502,126.12502,146.03,146.01,3.4249]
[1728696369906,126.12502,146.03,146.02,3.4247]
[1728696373111,126.12502,146.03,146.01,3.4247]
[1728696374700,126.12502,146.03,146.0,13.32]
[1728696374901,126.12502,146.03,146.0,16.745]
[1728696375097,126.12502,146.03,146.0,4.92]
[1728696375303,126.12502,146.03,146.0,8.345]
[1728696375915,126.12502,146.03,146.0,13.32]
[1728696376214,126.12502,146.03,146.01,3.4248]
[1728696384008,126.12502,146.03,146.01,11.8248]
[1728696384515,126.12502,146.03,146.01,8.4]
[1728696385017,126.12502,146.03,146.01,11.8249]
[1728696387024,126.12502,146.03,146.0,8.3451]
[1728696387221,126.12502,146.03,146.0,16.7451]
[1728696391623,126.12502,146.03,146.0,8.3451]
[1728696391918,126.12502,146.03,146.0,13.32]
[1728696393225,126.12502,146.03,146.0,4.92]
[1728696393416,126.12502,146.03,146.0,13.32]
[1728696397318,126.12502,146.03,146.0,4.92]
[1728696397518,126.12502,146.03,146.0,13.32]
[1728696397721,129.54952,146.03,146.0,4.92]
[1728696400722,126.12502,146.03,146.0,4.92]
[1728696401124,126.12502,146.03,146.0,13.32]
[1728696404029,126.12502,146.03,146.0,13.34]
[1728696410635,126.12502,146.03,145.95,2.8561]
[1728696410843,134.54502,146.03,145.95,1.4293]
[1728696411037,134.54502,146.03,145.98,8.42]
[1728696411351,3.4248,146.02,145.98,8.42]
[1728696413052,3.4248,146.02,145.99,8.42]
[1728696418554,126.12502,146.03,146.01,8.42]
[1728696419653,126.12502,146.03,146.01,11.8447]
[1728696424649,126.12502,146.03,146.01,3.4247]
[1728696426560,129.54952,146.03,146.0,11.8451]
[1728696427365,126.12502,146.03,145.99,4.9]
[1728696427560,126.12502,146.03,145.99,8.3253]
[1728696428161,129.54952,146.03,145.99,8.3253]
[1728696429259,3.4247,146.02,145.99,8.3253]
[1728696430764,3.4247,146.02,145.99,4.9]
[1728696439875,11.8453,146.0,145.96,3.4259]
[1728696440175,186.62613546,146.03,145.98,8.42]
[1728696440478,195.04613546,146.03,145.98,8.42]
[1728696440869,3.4247,146.02,145.98,11.8454]
[1728696442476,186.62613546,146.03,145.98,11.8454]
[1728696442778,190.05063546,146.03,145.98,11.8454]
[1728696445679,190.05063546,146.03,145.98,3.4254]
[1728696445877,3.4248,146.02,145.98,3.4254]
[1728696457388,198.47063546,146.03,145.99,3.4253]
[1728696457983,3.4247,146.02,145.98,3.4255]
[1728696458185,8.42,146.01,145.97,4.9]
[1728696459384,8.42,146.01,145.98,3.4255]
[1728696461684,186.62613546,146.03,145.97,4.9]
[1728696461891,8.42,146.02,145.99,3.4252]
[1728696476496,8.42,146.02,145.97,4.9]
[1728696476801,11.8447,146.02,145.98,3.4255]
[1728696477701,8.42,146.02,145.98,3.4255]
[1728696479603,190.05063546,146.03,145.98,3.4255]
[1728696479804,8.42,146.02,145.98,3.4255]
[1728696485617,190.05063546,146.03,145.98,3.4255]
[1728696485908,8.42,146.02,145.98,3.4255]
[1728696497223,190.05063546,146.03,145.98,3.4255]
[1728696497420,8.42,146.02,145.98,3.4255]
[1728696498721,126.12502,146.03,146.01,3.4247]
[1728696498920,126.12502,146.03,146.0,8.42]
[1728696499125,126.12502,146.03,146.0,13.32]
[1728696500125,126.12502,146.03,146.02,3.4247]
[1728696511534,126.12502,146.03,146.01,1.3515]
[1728696511733,8.42,146.02,145.98,1.4057]
[1728696511924,8.42,146.02,145.99,4.9]
[1728696512326,8.42,146.02,146.0,3.4251]
[1728696512826,8.42,146.02,145.97,1.4101]
[1728696513048,8.42,146.02,145.98,8.3255]
[1728696514325,8.42,146.01,145.98,4.9]
[1728696521835,8.42,145.99,145.95,8.3262]
[1728696533047,11.8456,145.98,145.94,8.3265]
[1728696533746,11.8456,145.98,145.93,9.6967]
[1728696535544,11.8456,145.98,145.94,3.4265]
[1728696537680,11.846,145.97,145.92,8.3268]
[1728696537874,11.846,145.97,145.92,4.9]
[1728696539471,11.846,145.97,145.93,3.4268]
[1728696540384,2.753,146.0,145.92,13.32]
[1728696540567,8.42,145.98,145.94,3.4264]
[1728696541668,2.753,146.0,145.96,3.426]
[1728696541669,6.1782,146.0,145.96,3.426]
[1728696542064,8.42,145.99,145.96,3.426]
[1728696543976,8.42,145.98,145.96,3.426]
[1728696551677,8.42,145.97,145.95,3.4262]
[1728696552680,11.8459,145.97,145.94,3.4265]
[1728696552897,8.42,145.97,145.94,3.4265]
[1728696553681,8.42,145.97,145.93,4.9]
[1728696553682,8.42,145.97,145.92,1.3797]
[1728696553888,8.42,145.97,145.93,3.4267]
[1728696554286,11.8459,145.97,145.93,3.4267]
[1728696558271,3.4259,145.97,145.93,3.4267]
[1728696565477,8.42,145.96,145.93,3.4267]
[1728696566381,8.42,145.96,145.92,9.7066]
[1728696567681,8.42,145.95,145.92,6.2797]
[1728696568388,11.8463,145.95,145.92,6.2797]
[1728696569888,8.42,145.95,145.92,6.2797]
[1728696572391,8.42,145.95,145.92,9.7067]
[1728696574187,11.8463,145.95,145.92,6.2797]
[1728696574390,11.8463,145.95,145.92,4.9]
[1728696574585,8.42,145.94,145.91,5.00502]
[1728696574788,3.7725,146.0,145.91,5.00502]
[1728696574981,8.42,145.94,145.91,5.00502]
[1728696575393,8.42,145.94,145.91,8.43222]
[1728696575890,11.8465,145.94,145.91,5.00502]
[1728696577194,8.42,145.94,145.91,5.00502]
[1728696578394,4.88,145.98,145.91,5.00502]
[1728696578583,11.8461,145.96,145.91,5.00502]
[1728696579590,8.42,145.96,145.91,5.00502]
[1728696579894,3.4263,145.95,145.92,3.427]
[1728696581389,11.8463,145.95,145.92,3.427]
[1728696585998,11.8463,145.95,145.91,8.43212]
[1728696586696,3.4266,145.94,145.91,8.43212]
[1728696587793,11.8464,145.95,145.91,8.43212]
[1728696590302,8.42,145.93,145.91,8.43212]
[1728696593700,8.42,145.93,145.91,5.00502]
[1728696593900,3.4264,145.95,145.91,5.00502]
[1728696594097,8.42,145.94,145.91,5.00502]
[1728696600917,11.8467,145.94,145.91,5.00502]
[1728696610019,11.8467,145.94,145.91,0.12502]
[1728696610214,3.7725,146.0,145.85,0.12502]
[1728696610215,8.42,145.92,145.85,0.12502]
[1728696610413,8.42,145.89,145.86,3.4283]
[1728696612920,8.42,145.89,145.86,8.3083]
[1728696613325,3.4272,145.92,145.87,3.428]
[1728696613520,8.42,145.9,145.87,3.428]
[1728696615637,8.42,145.92,145.88,8.42]
[1728696616521,8.3067,145.94,145.88,8.42]
[1728696616714,0.12502,145.97,145.91,8.42]
[1728696616914,0.12502,145.97,145.92,13.3]
[1728696617120,0.12502,145.97,145.94,3.4263]
[1728696618938,0.12502,145.97,145.95,3.4262]
[1728696619236,0.12502,145.97,145.95,8.42]
[1728696619626,0.12502,145.97,145.96,8.3061]
[1728696619929,8.54502,145.97,145.93,1.385]
[1728696620227,8.42,145.94,145.92,6.2991]
[1728696621230,8.42,145.94,145.92,4.88]
[1728696622621,8.42,145.93,145.92,4.88]
[1728696622826,8.42,145.93,145.88,74.02]
[1728696623124,5.00502,145.97,145.89,4.88]
[1728696623125,8.42,145.91,145.89,4.88]
[1728696623319,8.42,145.9,145.89,4.88]
[1728696623524,8.42,145.9,145.87,1.2981]
[1728696626733,11.8476,145.9,145.86,4.88]
[1728696632431,11.8476,145.9,145.86,8.3084]
[1728696633932,3.4276,145.9,145.86,8.3084]
[1728696634836,4.88,145.94,145.86,4.88]
[1728696635033,3.4272,145.91,145.87,3.4281]
[1728696638730,3.427,145.92,145.88,3.4279]
[1728696638967,11.847,145.92,145.88,3.4279]
[1728696639537,11.847,145.92,145.89,3.4277]
[1728696640436,11.847,145.92,145.86,4.88]
[1728696640639,11.847,145.92,145.88,3.4279]
[1728696644835,0.12502,145.97,145.91,3.4272]
[1728696645142,8.42,145.96,145.9,8.42]
[1728696645534,11.8461,145.96,145.92,3.4268]
[1728696647129,3.55102,145.97,145.93,3.4267]
[1728696647439,8.42,145.96,145.92,4.88]
[1728696648533,11.8462,145.96,145.92,8.3069]
[1728696651040,8.42,145.96,145.92,4.88]
[1728696651346,3.55092,145.97,145.93,3.4266]